bitfinex/quotes_ETHUSD_20251107
["timestamp","ask_amount","ask_price","bid_price","bid_amount"]
[1762511590274,0.00399279,3286.9,3286.8,42.82723667]
[1762511590697,0.40949679,3286.9,3286.8,42.82723667]
[1762511590893,0.00399279,3286.9,3286.8,42.82723667]
[1762511591201,1.12943837,3286.9,3286.8,42.82723667]
[1762511591770,7.08516664,3286.9,3286.8,43.11603667]
[1762511591975,10.62354699,3286.9,3286.8,43.11603667]
[1762511592302,11.10116419,3286.9,3286.8,43.11603667]
[1762511592506,11.40616419,3286.9,3286.8,43.11603667]
[1762511592712,11.40616419,3286.9,3286.8,42.73531952]
[1762511592908,11.05277899,3286.9,3286.8,42.04620996]
[1762511593082,8.27273515,3286.9,3286.8,43.27620996]
[1762511593282,11.3151155,3286.9,3286.8,43.27620996]
[1762511594103,10.63622261,3286.9,3286.8,43.27620996]
[1762511594308,11.00277899,3286.9,3286.8,43.27620996]
[1762511594606,11.2651155,3286.9,3286.8,44.50620996]
[1762511594806,12.18037051,3286.9,3286.8,44.50620996]
[1762511595310,12.18037051,3286.9,3286.8,7.381]
[1762511595511,4.35246264,3286.5,3286.4,0.001]
[1762511595677,5.40020611,3286.5,3286.4,0.001]
[1762511596012,1.63482313,3286.5,3286.4,0.001]
[1762511596308,1.63482313,3286.5,3286.4,0.4727]
[1762511596309,1.715216,3286.5,3286.4,0.4727]
[1762511596531,1.309712,3286.5,3286.4,0.4727]
[1762511596740,1.715216,3286.5,3286.4,0.9644]
[1762511596910,1.715216,3286.5,3286.4,1.18384]
[1762511596911,1.259712,3286.5,3286.4,1.18384]
[1762511597114,1.259712,3286.5,3286.4,2.41384]
[1762511597756,1.665216,3286.5,3286.4,2.41384]
[1762511597948,1.665216,3286.5,3286.4,1.7027]
[1762511598442,1.665216,3286.5,3286.4,2.9327]
[1762511598642,1.665216,3286.5,3286.4,3.4244]
[1762511599813,1.665216,3286.5,3286.4,4.6544]
[1762511600515,0.405504,3286.5,3286.4,4.6544]
[1762511600718,0.405504,3286.6,3286.4,5.24284]
[1762511600949,0.405504,3286.6,3286.5,0.4917]
[1762511601125,0.405504,3286.6,3286.5,0.9634]
[1762511602529,0.405504,3286.6,3286.5,2.1934]
[1762511603034,1.3205608,3286.6,3286.5,2.1934]
[1762511603822,1.3205608,3286.6,3286.5,3.4234]
[1762511605359,1.3205608,3286.6,3286.5,4.6534]
[1762511605926,0.9150568,3286.6,3286.5,4.6534]
[1762511606120,1.3205608,3286.6,3286.5,5.61084]
[1762511606759,1.3205608,3286.6,3286.5,6.84084]
[1762511608026,0.9150568,3286.6,3286.5,6.84084]
[1762511608229,0.9150568,3286.6,3286.5,8.07084]
[1762511608845,0.002,3286.9,3286.5,8.07084]
[1762511609050,0.002,3286.9,3286.8,0.4717]
[1762511609563,0.002,3286.9,3286.8,0.9634]
[1762511609859,0.002,3286.9,3286.8,2.1934]
[1762511610238,0.002,3286.9,3286.8,2.22382472]
[1762511610560,0.002,3287.3,3286.8,2.22382472]
[1762511610749,0.002,3287.3,3287.2,0.6551]
[1762511610925,0.002,3287.3,3287.2,0.68552102]
[1762511611128,0.002,3287.3,3287.2,2.3768]
[1762511612583,0.0012,3287.3,3287.2,2.3768]
[1762511612889,0.0012,3287.3,3287.2,3.6068]
[1762511613087,0.0012,3287.3,3287.2,3.96748]
[1762511614290,0.0012,3287.3,3287.2,5.19748]
[1762511614491,0.92163005,3288.1,3287.2,5.19748]
[1762511614492,0.92163005,3288.1,3287.2,5.22790102]
[1762511614797,0.92163005,3288.1,3287.5,0.4717]
[1762511614956,0.92163005,3288.1,3287.5,0.9634]
[1762511615592,0.92163005,3288.1,3287.5,2.1934]
[1762511615782,0.92163005,3288.1,3287.5,2.41274]
[1762511616794,0.92163005,3288.1,3287.5,3.64274]
[1762511618199,0.405504,3288.6,3287.5,3.64274]
[1762511618362,0.91448777,3288.4,3287.5,4.90315825]
[1762511618562,3.91710514,3288.7,3287.5,4.90315825]
[1762511618783,4.32260914,3288.7,3288.6,0.5212]
[1762511619010,0.005,3288.9,3288.6,0.5212]
[1762511619209,0.005,3288.9,3288.8,0.4717]
[1762511619615,0.005,3288.9,3288.8,0.9307]
[1762511619816,0.33131113,3288.9,3288.8,2.1607]
[1762511620585,0.33131113,3288.9,3288.8,1.7017]
[1762511620786,0.33131113,3288.9,3288.8,2.1607]
[1762511621218,0.33131113,3288.9,3288.8,3.3907]
[1762511621429,0.005,3288.9,3288.8,3.3907]
[1762511622188,0.007,3288.9,3288.8,3.3907]
[1762511622708,0.007,3288.9,3288.8,4.6207]
[1762511624297,0.007,3288.9,3288.8,5.8507]
[1762511624688,0.007,3288.9,3288.8,5.3917]
[1762511625236,0.007,3288.9,3288.8,5.8711]
[1762511625595,0.007,3288.9,3288.8,7.1011]
[1762511625924,0.007,3288.9,3288.8,6.6217]
[1762511627121,0.007,3288.9,3288.8,7.8517]
[1762511628529,0.007,3288.9,3288.8,9.0817]
[1762511629027,0.33831113,3288.9,3288.8,9.0817]
[1762511629187,0.80181113,3288.9,3288.8,8.61]
[1762511630032,0.80181113,3288.9,3288.8,9.84]
[1762511631221,2.11451096,3288.9,3288.8,10.8210884]
[1762511631515,7.61643923,3288.9,3288.8,10.8210884]
[1762511631910,7.92977574,3288.9,3288.8,10.8210884]
[1762511632346,8.40714049,3288.9,3288.8,10.8210884]
[1762511632545,8.40714049,3288.9,3288.8,12.0510884]
[1762511632754,8.09380398,3288.9,3288.8,12.0510884]
[1762511633041,7.18660815,3288.9,3288.8,12.0510884]
[1762511633247,6.38413227,3288.9,3288.8,12.0510884]
[1762511633847,6.85843227,3288.9,3288.8,12.0510884]
[1762511634145,6.85843227,3288.9,3288.8,13.2810884]
[1762511634310,6.92103227,3288.9,3288.8,13.2810884]
[1762511635138,7.92817574,3288.9,3288.8,13.2810884]
[1762511635338,7.92737574,3288.9,3288.8,14.5110884]
[1762511636347,8.40472961,3288.9,3288.8,14.5110884]
[1762511636761,8.40472961,3288.9,3288.8,15.7410884]
[1762511636962,8.0913931,3288.9,3288.8,15.7410884]
[1762511637165,6.86068614,3288.9,3288.8,15.7410884]
[1762511637520,5.99168214,3288.9,3288.8,16.2404884]
[1762511637719,6.39718614,3288.9,3288.8,16.2404884]
[1762511637946,6.39718614,3288.9,3288.8,15.7410884]
[1762511638154,6.86068614,3288.9,3288.8,16.9710884]
[1762511639522,5.99168214,3288.9,3288.8,18.7004884]
[1762511639759,5.99168214,3288.9,3288.8,18.2010884]
[1762511639959,5.99168214,3288.9,3288.8,18.7004884]
[1762511640118,5.99168214,3288.9,3288.8,18.2020884]
[1762511640317,6.45518214,3288.9,3288.8,18.2020884]
[1762511640514,5.97782827,3288.9,3288.8,18.2020884]
[1762511640920,5.51432827,3288.9,3288.8,19.9314884]
[1762511641247,0.0062,3288.9,3288.8,22.40403724]
[1762511641554,0.0062,3288.9,3288.8,21.92463724]
[1762511641758,0.0062,3288.9,3288.8,22.40403724]
[1762511642239,0.0062,3288.9,3288.8,23.15463724]
[1762511642444,0.0062,3288.9,3288.8,23.63403724]
[1762511642748,0.0062,3288.9,3288.8,23.15463724]
[1762511642960,0.0062,3288.9,3288.8,23.63403724]
[1762511643134,0.0062,3288.9,3288.8,21.1614884]
[1762511643655,0.48349038,3288.9,3288.8,22.3914884]
[1762511644961,0.48349038,3288.9,3288.8,23.6214884]
[1762511645727,0.48349038,3288.9,3288.8,24.1008884]
[1762511646149,0.48349038,3288.9,3288.8,24.8514884]
[1762511646661,0.48349038,3288.9,3288.8,25.3308884]
[1762511647064,0.48349038,3288.9,3288.8,27.05784956]
[1762511647557,0.48349038,3288.9,3288.8,24.8514884]
[1762511647764,0.48349038,3288.9,3288.8,26.5608884]
[1762511649130,0.48349038,3288.9,3288.8,27.7908884]
[1762511649330,0.0062,3288.9,3288.8,27.7908884]
[1762511651061,0.0062,3288.9,3288.8,28.5414884]
[1762511651267,0.0062,3288.9,3288.8,29.0208884]
[1762511651843,0.0062,3288.9,3288.8,29.72038983]
[1762511652968,0.0062,3288.9,3288.8,30.95038983]
[1762511654229,0.0062,3288.9,3288.8,32.18038983]
[1762511655961,0.0062,3288.9,3288.8,33.41038983]
[1762511657565,0.0062,3288.9,3288.8,34.64038983]
[1762511658134,0.0054,3288.9,3288.8,34.64038983]
[1762511658667,0.0054,3288.9,3288.8,34.16098983]
[1762511658967,0.0054,3288.9,3288.8,35.39098983]
[1762511659369,0.0054,3288.9,3288.8,35.85988983]
[1762511660381,0.0054,3288.9,3288.8,37.08988983]
[1762511661650,0.0054,3288.9,3288.8,38.31988983]
[1762511663140,0.0054,3288.9,3288.8,39.54988983]
[1762511664561,0.0054,3288.9,3288.8,40.77988983]
[1762511665980,0.0054,3288.9,3288.8,42.00988983]
[1762511667679,0.0054,3288.9,3288.8,43.23988983]
[1762511669163,0.0054,3288.9,3288.8,44.46988983]
[1762511670873,0.0054,3288.9,3288.8,45.69988983]
[1762511672673,0.0054,3288.9,3288.8,46.92988983]
[1762511674217,0.0054,3288.9,3288.8,48.15988983]
[1762511675819,0.0054,3288.9,3288.8,49.38988983]
[1762511677308,0.0054,3288.9,3288.8,50.61988983]
[1762511678911,0.0054,3288.9,3288.8,51.84988983]
[1762511679505,0.0054,3288.9,3288.8,51.85748983]
[1762511680202,0.0054,3288.9,3288.8,53.08748983]
[1762511681026,0.0046,3288.9,3288.8,53.08748983]
[1762511681496,0.0046,3288.9,3288.8,54.31748983]
[1762511681893,0.0046,3288.9,3288.8,53.84098983]
[1762511682206,0.0046,3288.9,3288.8,52.6420884]
[1762511682623,0.4841,3288.9,3288.8,52.6420884]
[1762511682779,0.4841,3288.9,3288.8,53.8720884]
[1762511684014,0.0046,3288.9,3288.8,53.8720884]
[1762511684216,0.0046,3288.9,3288.8,55.1020884]
[1762511684409,0.0046,3288.9,3288.8,57.24392504]
[1762511685820,0.0046,3288.9,3288.8,58.47392504]
[1762511686938,0.0046,3288.9,3288.8,58.97032504]
[1762511687243,0.0046,3288.9,3288.8,60.20032504]
[1762511688613,0.466,3288.9,3288.8,60.93392504]
[1762511689206,0.0046,3288.9,3288.8,60.93392504]
[1762511689841,0.0046,3288.9,3288.8,62.16392504]
[1762511690237,0.0046,3288.9,3288.8,62.66032504]
[1762511690948,0.466,3288.9,3288.8,62.16392504]
[1762511691113,0.466,3288.9,3288.8,63.39392504]
[1762511691510,0.0046,3288.9,3288.8,63.39392504]
[1762511692724,0.0046,3288.9,3288.8,64.62392504]
[1762511694140,0.0046,3288.9,3288.8,66.35032504]
[1762511695458,0.0046,3288.9,3288.8,67.58032504]
[1762511696561,0.0046,3288.9,3288.8,68.05582504]
[1762511696874,0.0046,3288.9,3288.8,68.81032504]
[1762511698442,0.0046,3288.9,3288.8,70.04032504]
[1762511700070,0.0046,3288.9,3288.8,71.27032504]
[1762511700265,0.466,3288.9,3288.8,68.6320884]
[1762511700465,1.0006,3288.9,3288.8,68.6320884]
[1762511701344,1.0006,3288.9,3288.8,69.8620884]
[1762511702388,1.91483974,3288.9,3288.8,69.8620884]
[1762511702964,1.91483974,3288.9,3288.8,71.0920884]
[1762511703289,1.38023974,3288.9,3288.8,71.0920884]
[1762511703594,1.38023974,3288.9,3288.8,73.47162907]
[1762511703790,1.37943974,3288.9,3288.8,73.47162907]
[1762511704279,1.37943974,3288.9,3288.8,74.70162907]
[1762511704792,1.85863974,3288.9,3288.8,74.70162907]
[1762511704982,1.85863974,3288.9,3288.8,72.3220884]
[1762511705869,1.37943974,3288.9,3288.8,73.5520884]
[1762511706068,1.85863974,3288.9,3288.8,73.5520884]
[1762511707372,1.85863974,3288.9,3288.8,74.7820884]
[1762511707794,2.33590592,3288.9,3288.8,74.7820884]
[1762511707957,1.85863974,3288.9,3288.8,74.7820884]
[1762511708896,3.51819757,3288.9,3288.8,76.0120884]
[1762511709097,2.60810776,3288.9,3288.8,76.0120884]
[1762511710212,2.60810776,3288.9,3288.8,77.2420884]
[1762511710785,0.91803974,3288.9,3288.8,81.24323578]
[1762511711509,0.91803974,3288.9,3288.8,82.47323578]
[1762511713212,0.91803974,3288.9,3288.8,83.70323578]
[1762511714721,0.91803974,3288.9,3288.8,84.93323578]
[1762511716686,0.91803974,3288.9,3288.8,86.16323578]
[1762511718142,0.91803974,3288.9,3288.8,86.91773578]
[1762511718322,0.91803974,3288.9,3288.8,87.40703578]
[1762511718927,0.91803974,3288.9,3288.8,86.91773578]
[1762511719634,0.91803974,3288.9,3288.8,88.63703578]
[1762511721110,1.39526481,3288.9,3288.8,89.86703578]
[1762511722636,1.39526481,3288.9,3288.8,91.09703578]
[1762511724115,1.39526481,3288.9,3288.8,92.32703578]
[1762511726164,1.39526481,3288.9,3288.8,93.55703578]
[1762511726744,1.39446481,3288.9,3288.8,93.55703578]
[1762511727332,1.39446481,3288.9,3288.8,94.78703578]
[1762511728750,1.39446481,3288.9,3288.8,96.01703578]
[1762511730166,1.39446481,3288.9,3288.8,97.24703578]
[1762511731833,1.39446481,3288.9,3288.8,98.47703578]
[1762511733252,1.39446481,3288.9,3288.8,99.70703578]
[1762511734454,0.91723974,3288.9,3288.8,99.70703578]
[1762511734644,0.91723974,3288.9,3288.8,100.93703578]
[1762511736873,0.91723974,3288.9,3288.8,102.16703578]
[1762511738271,0.91723974,3288.9,3288.8,103.39703578]
[1762511739160,0.003,3288.9,3288.8,103.39703578]
[1762511739586,0.003,3288.9,3288.8,104.62703578]
[1762511741303,0.003,3288.9,3288.8,105.85703578]
[1762511742501,0.003,3288.9,3288.8,105.36773578]
[1762511742671,0.003,3288.9,3288.8,107.08703578]
[1762511744295,0.003,3288.9,3288.8,108.31703578]
[1762511745579,0.003,3288.9,3288.8,109.54703578]
[1762511747224,0.003,3288.9,3288.8,110.77703578]
[1762511748595,0.003,3288.9,3288.8,112.00703578]
[1762511749506,0.0022,3288.9,3288.8,112.00703578]
[1762511749983,0.0022,3288.9,3288.8,113.23703578]
[1762511751277,0.0022,3288.9,3288.8,114.46703578]
[1762511752791,0.0022,3288.9,3288.8,115.69703578]
[1762511754097,0.0022,3288.9,3288.8,116.92703578]
[1762511755412,0.0022,3288.9,3288.8,118.15703578]
[1762511756713,0.0022,3288.9,3288.8,119.38703578]
[1762511758097,0.0022,3288.9,3288.8,120.61703578]
[1762511759406,0.0022,3288.9,3288.8,121.84703578]
[1762511759610,0.91604443,3289.1,3288.9,0.00452986]
[1762511759807,0.91604443,3289.1,3289.0,3.48184738]
[1762511760526,0.91604443,3289.1,3289.0,3.97484738]
[1762511761087,0.91604443,3289.1,3289.0,3.48184738]
[1762511761286,0.91604443,3289.1,3289.0,5.20484738]
[1762511762737,0.91604443,3289.1,3289.0,6.43484738]
[1762511764135,0.91604443,3289.1,3289.0,7.66484738]
[1762511764755,0.91604443,3289.1,3289.0,7.17184738]
[1762511765576,0.91604443,3289.1,3289.0,8.40184738]
[1762511766969,0.00194119,3289.1,3289.0,9.63184738]
[1762511768274,0.00194119,3289.1,3289.0,10.86184738]
[1762511768650,0.00194119,3289.1,3289.0,10.85570165]
[1762511769838,0.00194119,3289.1,3289.0,12.08570165]
[1762511770039,0.00194119,3289.1,3289.0,12.57870165]
[1762511771136,0.00194119,3289.1,3289.0,13.80870165]
[1762511772568,0.00194119,3289.1,3289.0,16.84913947]
[1762511772773,0.00194119,3289.1,3289.0,21.28713947]
[1762511772968,0.00114119,3289.1,3289.0,21.40899019]
[1762511773181,0.00114119,3289.1,3289.0,18.24670165]
[1762511773978,0.00314119,3289.1,3289.0,18.24670165]
[1762511774181,0.00314119,3289.1,3289.0,19.47670165]
[1762511775689,0.00314119,3289.1,3289.0,20.70670165]
[1762511776928,0.00314119,3289.1,3289.0,19.76724738]
[1762511777206,0.00314119,3289.1,3289.0,18.26244738]
[1762511777388,0.00314119,3289.1,3289.0,18.74244738]
[1762511777969,0.00314119,3289.1,3289.0,18.26244738]
[1762511778486,0.95354119,3289.1,3289.0,17.78924738]
[1762511778782,0.12501159,3289.1,3289.0,19.97244738]
[1762511778971,0.00314119,3289.1,3289.0,19.97244738]
[1762511779382,0.00314119,3289.1,3289.0,23.18044738]
[1762511779977,0.00314119,3289.1,3289.0,24.41044738]
[1762511781278,0.00314119,3289.1,3289.0,25.64044738]
[1762511782879,0.00314119,3289.1,3289.0,26.87044738]
[1762511783701,0.00314119,3289.1,3289.0,26.86542444]
[1762511783910,0.00314119,3289.1,3289.0,26.38542444]
[1762511784235,0.00314119,3289.1,3289.0,27.61542444]
[1762511784392,0.00314119,3289.1,3289.0,28.09542444]
[1762511785636,0.46274119,3289.1,3289.0,28.37222444]
[1762511785914,0.46274119,3289.1,3289.0,25.16422444]
[1762511786132,0.00314119,3289.1,3289.0,26.11742444]
[1762511786922,0.00314119,3289.1,3289.0,29.32542444]
[1762511787080,0.00314119,3289.1,3289.0,30.55542444]
[1762511788525,0.00314119,3289.1,3289.0,31.78542444]
[1762511790136,0.00314119,3289.1,3289.0,33.01542444]
[1762511791049,0.00314119,3289.1,3289.0,36.05586226]
[1762511791396,0.00314119,3289.1,3289.0,37.28586226]
[1762511792710,0.00314119,3289.1,3289.0,38.51586226]
[1762511792906,0.00314119,3289.1,3289.0,38.51686226]
[1762511794118,0.00314119,3289.1,3289.0,39.74686226]
[1762511795030,0.00234119,3289.1,3289.0,39.74686226]
[1762511795227,0.00234119,3289.1,3289.0,44.0443528]
[1762511795432,0.15434119,3289.1,3289.0,45.2743528]
[1762511795771,0.002,3289.3,3289.2,6.65375694]
[1762511796051,0.002,3289.3,3289.2,7.60695694]
[1762511796933,0.002,3289.3,3289.2,8.83695694]
[1762511797396,0.002,3289.3,3289.2,8.95878243]
[1762511798234,0.002,3289.3,3289.2,10.18878243]
[1762511798532,0.002,3289.3,3289.2,13.06248864]
[1762511799732,0.002,3289.3,3289.2,14.29248864]
[1762511800151,0.002,3289.3,3289.2,15.55220064]
[1762511800919,0.002,3289.3,3289.2,16.78220064]
[1762511801127,0.002,3289.5,3289.4,6.65357209]
[1762511801356,0.002,3290.4,3289.7,7.91300686]
[1762511801501,0.002,3290.4,3289.7,8.87290686]
[1762511801836,0.002,3290.4,3289.7,8.99469489]
[1762511802539,0.002,3290.4,3289.7,10.22469489]
[1762511802728,0.002,3290.4,3290.0,7.91272967]
[1762511802925,0.002,3290.4,3290.0,9.65578368]
[1762511803130,0.002,3290.4,3290.0,10.14128368]
[1762511803929,0.002,3290.4,3290.0,11.37128368]
[1762511804503,0.002,3290.4,3290.0,11.49307022]
[1762511805203,0.002,3290.4,3290.0,12.72307022]
[1762511806445,0.002,3290.4,3290.0,13.95307022]
[1762511807815,0.002,3290.4,3290.0,15.18307022]
[1762511809247,0.002,3290.4,3290.0,16.41307022]
[1762511810322,0.002,3290.4,3290.3,7.91245254]
[1762511810527,0.002,3290.4,3290.3,13.50258852]
[1762511810735,0.002,3290.4,3290.3,14.00218852]
[1762511810936,0.005,3290.9,3290.4,6.65264817]
[1762511811238,0.005,3290.9,3290.4,7.78044817]
[1762511811445,0.005,3290.9,3290.8,6.65227876]
[1762511811643,0.005,3290.9,3290.8,13.25009198]
[1762511811835,0.005,3290.9,3290.8,14.97969198]
[1762511812049,0.005,3290.9,3290.8,15.16079198]
[1762511812449,0.1512,3291.4,3291.3,3.03831312]
[1762511812651,0.1512,3291.4,3291.3,10.15983329]
[1762511812853,0.1512,3291.4,3291.3,12.83137816]
[1762511813029,0.1512,3291.4,3291.3,13.29297816]
[1762511813236,0.1512,3291.4,3291.3,14.52297816]
[1762511814624,0.1512,3291.4,3291.3,15.75297816]
[1762511815220,0.8167,3291.4,3290.8,1.23]
[1762511815544,0.8167,3291.4,3289.7,1.23]
[1762511815545,0.5573,3290.9,3289.7,1.23]
[1762511815723,0.4578,3290.1,3289.7,1.23]
[1762511815921,0.9194,3290.1,3290.0,6.88]
[1762511816116,1.36424371,3290.1,3290.0,8.11]
[1762511816342,1.83319696,3290.1,3290.0,8.11]
[1762511817658,1.83319696,3290.1,3290.0,9.34]
[1762511817832,1.83239696,3290.1,3290.0,9.34]
[1762511819189,1.83239696,3290.1,3290.0,10.57]
[1762511820683,1.83239696,3290.1,3290.0,11.8]
[1762511821884,1.83239696,3290.1,3290.0,13.03]
[1762511822685,0.9186,3290.1,3290.0,13.03]
[1762511823278,0.9186,3290.1,3290.0,14.26]
[1762511824693,0.9186,3290.1,3290.0,15.49]
[1762511826157,0.9186,3290.1,3290.0,16.72]
[1762511827460,0.9186,3290.1,3290.0,17.95]
[1762511828759,0.9186,3290.1,3290.0,19.181]
[1762511829492,0.9186,3290.1,3290.0,19.1376]
[1762511829493,3.39313472,3290.1,3290.0,19.1376]
[1762511829809,4.15265805,3290.1,3290.0,19.1376]
[1762511830165,4.15265805,3290.1,3290.0,20.3676]
[1762511830559,2.133044,3290.1,3290.0,20.3676]
[1762511830791,2.56484835,3290.1,3290.0,20.3676]
[1762511830963,2.21288968,3290.1,3290.0,20.3676]
[1762511831161,3.82456035,3290.1,3290.0,20.3676]
[1762511831704,6.86398164,3290.1,3290.0,21.5976]
[1762511832075,3.82456035,3290.1,3290.0,21.5976]
[1762511833078,3.47260168,3290.1,3290.0,21.5976]
[1762511833279,3.81986185,3290.1,3290.0,22.8276]
[1762511834058,2.10934435,3290.1,3290.0,22.8276]
[1762511834262,0.9186,3290.1,3290.0,22.8276]
[1762511834659,1.33727563,3290.1,3290.0,24.0576]
[1762511834909,0.9186,3290.1,3290.0,24.0576]
[1762511836097,0.9186,3290.1,3290.0,25.2876]
[1762511837241,0.4838,3290.7,3290.0,28.27646]
[1762511837443,0.4838,3290.7,3290.0,29.50646]
[1762511837602,0.4516,3290.1,3290.0,29.04636]
[1762511838115,0.9354,3290.1,3290.0,29.04636]
[1762511838310,0.9354,3290.1,3290.0,26.5176]
[1762511838528,1.3057423,3290.1,3290.0,26.5176]
[1762511838722,1.3057423,3290.1,3290.0,27.7476]
[1762511839201,0.4516,3290.1,3290.0,27.7476]
[1762511839602,0.9354,3290.1,3290.0,27.7476]
[1762511839817,0.64046005,3290.9,3290.0,30.98246]
[1762511839818,0.3703423,3290.3,3290.0,30.98246]
[1762511840021,0.64046005,3290.9,3290.0,30.98246]
[1762511840022,0.4838,3290.8,3290.1,0.03039421]
[1762511840316,0.4838,3290.8,3290.0,32.21246]
[1762511840624,0.483,3290.8,3290.0,32.21246]
[1762511841604,0.4516,3290.1,3290.0,32.98236]
[1762511842500,0.9354,3290.1,3290.0,32.98236]
[1762511842933,0.9354,3290.1,3290.0,34.21236]
[1762511843838,0.9354,3290.1,3290.0,31.4376]
[1762511844345,0.9354,3290.1,3290.0,32.6676]
[1762511844704,1.3057423,3290.1,3290.0,32.6676]
[1762511845535,1.3057423,3290.1,3290.0,33.8976]
[1762511846841,0.9354,3290.1,3290.0,33.8976]
[1762511847146,0.9354,3290.1,3290.0,35.1276]
[1762511848711,0.9354,3290.1,3290.0,36.3576]
[1762511850145,0.9354,3290.1,3290.0,37.5876]
[1762511851514,0.9354,3290.1,3290.0,38.8176]
[1762511852830,0.9354,3290.1,3290.0,40.0476]
[1762511854152,0.9354,3290.1,3290.0,41.2776]
[1762511855328,0.4516,3290.1,3290.0,41.2776]
[1762511855530,0.4516,3290.1,3290.0,45.53684738]
[1762511855760,0.9354,3290.1,3290.0,45.53684738]
[1762511855960,0.9354,3290.1,3290.0,42.5076]
[1762511857068,0.9354,3290.1,3290.0,43.7376]
[1762511858569,0.9354,3290.1,3290.0,44.9676]
[1762511859909,0.9354,3290.1,3290.0,46.1976]
[1762511861264,0.9354,3290.1,3290.0,47.4276]
[1762511862656,0.4516,3290.1,3290.0,47.4276]
[1762511862879,0.9099,3290.1,3290.0,48.6576]
[1762511863077,0.3703423,3290.6,3290.0,51.68684738]
[1762511863256,0.4583,3290.5,3290.1,0.03039421]
[1762511863456,0.4575,3290.5,3290.1,0.03039421]
[1762511863677,0.4739,3290.2,3290.1,0.03039421]
[1762511863962,0.1512,3290.1,3290.0,48.6576]
[1762511864258,0.1512,3290.1,3290.0,52.91684738]
[1762511864460,0.1512,3290.1,3290.0,53.85694738]
[1762511865677,0.1512,3290.1,3290.0,55.08694738]
[1762511866786,0.1512,3290.1,3290.0,54.62374738]
[1762511866968,0.1512,3290.1,3290.0,55.85374738]
[1762511868480,0.6412,3290.1,3290.0,56.60684738]
[1762511868784,1.1,3290.1,3290.0,56.60684738]
[1762511869195,0.6412,3290.1,3290.0,56.60684738]
[1762511869899,0.6412,3290.1,3290.0,57.83684738]
[1762511871079,1.4703423,3290.1,3290.0,54.8076]
[1762511871314,1.4703423,3290.1,3290.0,56.0376]
[1762511872594,1.4703423,3290.1,3290.0,57.2676]
[1762511873014,2.08189423,3290.1,3290.0,57.2676]
[1762511874215,2.08189423,3290.1,3290.0,58.4976]
[1762511874411,1.3191423,3290.1,3290.0,58.4976]
[1762511874582,1.65971681,3290.1,3290.0,58.4976]
[1762511875014,1.82568849,3290.1,3290.0,58.4976]
[1762511875415,1.48511398,3290.1,3290.0,59.7276]
[1762511875720,1.3191423,3290.1,3290.0,59.7276]
[1762511877145,1.3191423,3290.1,3290.0,60.9576]
[1762511879422,0.9488,3290.1,3290.0,60.9576]
[1762511879617,1.3191423,3290.1,3290.0,62.1876]
[1762511881026,1.3191423,3290.1,3290.0,63.4176]
[1762511881517,0.9488,3290.1,3290.0,63.4176]
[1762511882721,0.9488,3290.1,3290.0,64.6476]
[1762511883751,1.86278349,3290.1,3290.0,64.6476]
[1762511884055,1.40398349,3290.1,3290.0,64.6476]
[1762511884226,1.40398349,3290.1,3290.0,65.8776]
[1762511884945,1.86278349,3290.1,3290.0,65.8776]
[1762511885733,1.86278349,3290.1,3290.0,67.1076]
[1762511886170,1.86198349,3290.1,3290.0,67.1076]
[1762511886538,1.40318349,3290.1,3290.0,67.1076]
[1762511886878,1.86198349,3290.1,3290.0,67.1076]
[1762511887073,1.40318349,3290.1,3290.0,68.3376]
[1762511887282,0.4892,3290.1,3290.0,68.3376]
[1762511887470,0.948,3290.1,3290.0,68.3376]
[1762511887671,0.9488,3290.1,3290.0,68.3376]
[1762511889253,0.9488,3290.1,3290.0,69.5676]
[1762511889653,0.49,3290.1,3290.0,69.5676]
[1762511890275,0.002,3290.5,3290.0,70.0445]
[1762511890484,0.8311423,3290.5,3290.1,0.4769]
[1762511890669,0.91388882,3290.4,3290.1,0.4769]
[1762511890869,0.1512,3290.1,3290.0,70.7976]
[1762511891073,0.1512,3290.1,3290.0,73.82684738]
[1762511891250,0.1512,3290.1,3290.0,74.30374738]
[1762511892161,0.1512,3290.1,3290.0,75.53374738]
[1762511892555,0.91588882,3290.5,3290.0,75.53374738]
[1762511892556,0.002,3290.5,3290.0,75.99694738]
[1762511892885,0.002,3290.5,3290.1,0.5602]
[1762511893084,0.002,3290.5,3290.2,3.02924738]
[1762511893598,0.002,3290.5,3290.2,4.25924738]
[1762511895470,0.002,3290.5,3290.4,0.4852]
[1762511896794,0.002,3290.5,3290.4,0.9385]
[1762511897010,0.002,3290.5,3290.4,1.23]
[1762511897504,0.4573,3290.5,3290.4,1.23]
[1762511898807,0.9229,3290.5,3290.4,2.46]
[1762511899212,1.2932423,3290.5,3290.4,2.46]
[1762511899398,0.8276423,3290.5,3290.4,2.46]
[1762511900267,0.4573,3290.5,3290.4,2.46]
[1762511900472,0.8276423,3290.5,3290.4,3.69]
[1762511901109,0.4573,3290.5,3290.4,3.69]
[1762511901486,0.002,3290.5,3290.4,3.69]
[1762511901872,0.002,3290.5,3290.4,4.92]
[1762511902076,0.002,3290.5,3290.4,6.44612474]
[1762511903383,0.002,3290.5,3290.4,7.67612474]
[1762511903915,0.002,3290.5,3290.4,7.19092474]
[1762511904798,0.002,3290.5,3290.4,8.42092474]
[1762511904998,0.002,3290.5,3290.4,8.90612474]
[1762511905477,0.002,3290.5,3290.4,9.35942474]
[1762511906225,0.002,3290.5,3290.4,10.13612474]
[1762511906579,0.002,3290.5,3290.4,10.58942474]
[1762511907813,0.002,3290.5,3290.4,11.81942474]
[1762511908583,0.002,3290.5,3290.4,11.36612474]
[1762511908989,0.0012,3290.5,3290.4,11.36612474]
[1762511909209,0.0012,3290.5,3290.4,12.59612474]
[1762511909717,0.0012,3290.5,3290.4,13.04942474]
[1762511910496,0.0012,3290.5,3290.4,14.27942474]
[1762511912713,0.0012,3290.5,3290.4,15.50942474]
[1762511914230,0.0012,3290.5,3290.4,16.73942474]
[1762511915511,0.0012,3290.5,3290.4,17.96942474]
[1762511917319,0.0012,3290.5,3290.4,19.19942474]
[1762511918318,0.0012,3290.5,3290.4,22.40742474]
[1762511918624,0.0012,3290.5,3290.4,23.63742474]
[1762511920111,0.0012,3290.5,3290.4,24.86742474]